bitfinex/quotes_BTCUSD_20230113
["timestamp","ask_amount","ask_price","bid_price","bid_amount"]
[1673581197686,1.69171521,18849.0,18848.0,0.00467622]
[1673581197931,2.5087585,18849.0,18848.0,0.00467622]
[1673581198664,1.59521244,18849.0,18848.0,0.00467622]
[1673581199920,2.19505753,18849.0,18848.0,0.00467622]
[1673581200657,2.51264952,18849.0,18848.0,0.00467622]
[1673581200912,2.19505753,18849.0,18848.0,0.00467622]
[1673581203404,2.51263826,18849.0,18848.0,0.00467622]
[1673581204194,2.31507838,18849.0,18848.0,0.00467622]
[1673581204442,2.31538744,18849.0,18848.0,0.00467622]
[1673581204692,1.89504181,18849.0,18848.0,0.00467622]
[1673581205434,2.31538641,18849.0,18848.0,0.00467622]
[1673581205685,1.63620466,18849.0,18848.0,0.00467622]
[1673581205977,1.14835504,18849.0,18848.0,0.00467622]
[1673581206231,1.14835504,18849.0,18848.0,0.14467622]
[1673581207195,1.24003047,18849.0,18848.0,0.14467622]
[1673581207935,0.15156327,18849.0,18848.0,0.70929435]
[1673581208187,0.31034038,18849.0,18848.0,0.70929435]
[1673581208928,0.15156327,18849.0,18848.0,0.70929435]
[1673581210918,0.15286696,18849.0,18848.0,0.70929435]
[1673581215512,0.41164407,18849.0,18848.0,0.14467622]
[1673581217554,0.64981364,18849.0,18848.0,0.14467622]
[1673581218505,0.54981364,18849.0,18848.0,0.14467622]
[1673581219002,0.54981364,18849.0,18848.0,0.28537622]
[1673581220714,0.31164407,18849.0,18848.0,0.28537622]
[1673581224777,0.95499082,18849.0,18848.0,0.2796926]
[1673581225021,1.11392324,18849.0,18848.0,0.2796926]
[1673581225256,1.60241655,18849.0,18848.0,0.2796926]
[1673581225496,1.27257155,18849.0,18848.0,0.2796926]
[1673581227238,0.32894258,18848.0,18847.0,0.1403]
[1673581227486,0.25893114,18848.0,18847.0,0.1403]
[1673581227741,0.82703571,18848.0,18847.0,0.1403]
[1673581227973,0.328839,18847.0,18845.0,0.1398]
[1673581228219,0.329935,18846.0,18845.0,0.1398]
[1673581228426,0.49735442,18847.0,18845.0,0.1398]
[1673581229190,0.57422371,18846.0,18845.0,0.1398]
[1673581229670,0.57422371,18846.0,18845.0,0.1408]
[1673581229950,0.57422371,18846.0,18845.0,0.1398]
[1673581230203,0.71022371,18846.0,18845.0,0.1408]
[1673581231203,0.13729821,18846.0,18845.0,0.52224011]
[1673581233428,0.13729821,18846.0,18845.0,0.1408]
[1673581240570,0.13729821,18846.0,18845.0,0.14176594]
[1673581240809,0.13729821,18846.0,18845.0,0.1408]
[1673581245447,0.13729821,18846.0,18845.0,0.13614413]
[1673581245931,0.13729821,18846.0,18845.0,0.90145153]
[1673581246415,0.13729821,18846.0,18845.0,1.23414291]
[1673581246662,0.13729821,18846.0,18845.0,1.26720481]
[1673581247409,0.13729821,18846.0,18845.0,1.42550684]
[1673581247892,0.13729821,18846.0,18845.0,1.26720481]
[1673581250157,0.13729821,18846.0,18845.0,1.26817075]
[1673581251165,0.13729821,18846.0,18845.0,0.27684413]
[1673581251401,0.13730245,18846.0,18845.0,0.13614413]
[1673581251643,0.13730245,18846.0,18845.0,0.56607913]
[1673581252157,0.13730245,18846.0,18845.0,1.14022823]
[1673581252398,0.13730245,18846.0,18845.0,1.29853026]
[1673581252665,0.13730245,18846.0,18845.0,1.14022823]
[1673581252910,0.13730245,18846.0,18845.0,1.29853026]
[1673581253397,0.13730245,18846.0,18845.0,1.14022823]
[1673581254390,0.13730245,18846.0,18845.0,1.67552525]
[1673581254874,0.13730245,18846.0,18845.0,2.03155846]
[1673581255391,0.13730245,18846.0,18845.0,1.67552525]
[1673581255636,0.13730245,18846.0,18845.0,2.03153762]
[1673581256358,0.13730245,18846.0,18845.0,1.43813026]
[1673581256605,0.13730245,18846.0,18845.0,1.33813026]
[1673581259136,0.13730245,18846.0,18845.0,1.3390962]
[1673581259625,0.13730245,18846.0,18845.0,1.18079417]
[1673581260314,0.13730245,18846.0,18845.0,1.3390962]
[1673581261582,0.13730245,18846.0,18845.0,1.33813026]
[1673581262777,0.13730245,18846.0,18845.0,0.9056471]
[1673581263020,0.13730245,18846.0,18845.0,1.95753684]
[1673581263259,0.13730245,18846.0,18845.0,1.65753684]
[1673581263499,0.13730245,18846.0,18845.0,2.62133482]
[1673581264000,0.13730245,18846.0,18845.0,2.20227844]
[1673581264248,0.01810628,18846.0,18845.0,2.93370056]
[1673581265005,0.00130245,18846.0,18845.0,2.93270056]
[1673581265267,0.00130245,18846.0,18845.0,3.54893306]
[1673581265510,0.00130245,18846.0,18845.0,3.06815352]
[1673581265739,0.00130245,18846.0,18845.0,3.54338602]
[1673581265983,0.00130245,18846.0,18845.0,3.06815352]
[1673581266942,0.00130245,18846.0,18845.0,3.38675352]
[1673581267167,0.00130245,18846.0,18845.0,3.38624016]
[1673581268362,0.00130245,18846.0,18845.0,3.24524016]
[1673581268619,0.00530245,18846.0,18845.0,3.37924016]
[1673581270823,0.00530245,18846.0,18845.0,3.03843284]
[1673581271073,0.00530245,18846.0,18845.0,3.77514198]
[1673581271313,0.00530245,18846.0,18845.0,3.43433466]
[1673581271830,0.00529914,18846.0,18845.0,2.93134198]
[1673581272060,0.00529914,18846.0,18845.0,2.93111309]
[1673581272309,0.00529914,18846.0,18845.0,2.53544016]
[1673581272797,0.00529914,18846.0,18845.0,2.93108834]
[1673581273054,0.00529914,18846.0,18845.0,2.53544016]
[1673581273547,0.00529914,18846.0,18845.0,2.93108268]
[1673581275822,0.00529914,18846.0,18845.0,2.53544016]
[1673581276310,0.00529914,18846.0,18845.0,2.9309545]
[1673581276543,0.00529914,18846.0,18845.0,2.53544016]
[1673581278068,0.00529914,18846.0,18845.0,2.93091662]
[1673581278575,0.00529914,18846.0,18845.0,2.53544016]
[1673581279342,0.00529914,18846.0,18845.0,2.93093497]
[1673581279551,0.00529914,18846.0,18845.0,2.53544016]
[1673581281746,0.00529914,18846.0,18845.0,2.59008708]
[1673581282022,0.00529914,18846.0,18845.0,2.9308944]
[1673581282264,0.00529914,18846.0,18845.0,2.53544016]
[1673581284237,0.00096356,18846.0,18845.0,2.53541016]
[1673581284482,0.00096356,18846.0,18845.0,2.59015714]
[1673581285410,0.00096356,18846.0,18845.0,2.89985063]
[1673581285672,0.00096356,18846.0,18845.0,3.21631688]
[1673581285952,0.00096356,18846.0,18845.0,2.89985365]
[1673581286230,0.00096356,18846.0,18845.0,2.5833874]
[1673581287037,0.00096356,18846.0,18845.0,2.1878331]
[1673581288027,0.00096356,18846.0,18845.0,2.52864042]
[1673581288306,0.00011821,18846.0,18845.0,3.00387292]
[1673581288779,0.00011821,18846.0,18845.0,3.84947292]
[1673581289278,0.00011821,18846.0,18845.0,4.34870835]
[1673581290747,0.00011821,18846.0,18845.0,3.84947292]
[1673581290987,0.00011821,18846.0,18845.0,4.34870835]
[1673581291222,0.00011821,18846.0,18845.0,4.76490835]
[1673581291988,0.00129825,18847.0,18846.0,0.1]
[1673581292240,0.00129825,18847.0,18846.0,2.72182586]
[1673581292484,0.00129825,18847.0,18846.0,4.51191156]
[1673581292724,0.00129825,18847.0,18846.0,5.48570796]
[1673581292961,0.00129825,18847.0,18846.0,5.01114699]
[1673581293202,0.01556327,18849.0,18847.0,0.1]
[1673581293523,0.01556327,18849.0,18848.0,1.70647839]
[1673581293757,0.01556327,18849.0,18848.0,2.00647839]
[1673581294478,0.01556327,18849.0,18848.0,2.05759216]
[1673581294725,0.01556327,18849.0,18848.0,2.07099821]
[1673581294965,0.01556327,18849.0,18848.0,1.93105701]
[1673581295203,0.06256327,18849.0,18848.0,1.93405701]
[1673581295707,0.06256327,18849.0,18848.0,2.47503997]
[1673581295945,0.01556327,18849.0,18848.0,2.47203997]
[1673581296177,0.01556327,18849.0,18848.0,2.48634994]
[1673581297424,0.01556327,18849.0,18848.0,1.94635583]
[1673581297899,0.01556327,18849.0,18848.0,2.65552414]
[1673581298130,0.01556327,18849.0,18848.0,2.3391273]
[1673581298622,0.01556327,18849.0,18848.0,2.5615459]
[1673581299344,0.01556327,18849.0,18848.0,2.8268259]
[1673581299578,0.01556327,18849.0,18848.0,2.43135732]
[1673581300061,0.01556327,18849.0,18848.0,2.8268259]
[1673581300295,0.01556327,18849.0,18848.0,2.92127378]
[1673581300530,0.01556327,18849.0,18848.0,2.60476686]
[1673581301024,0.01556327,18849.0,18848.0,2.9214301]
[1673581301503,0.01556327,18849.0,18848.0,2.82698222]
[1673581301737,0.01556327,18849.0,18848.0,1.96355368]
[1673581301974,0.01556327,18849.0,18848.0,2.26355368]
[1673581302224,0.01556327,18849.0,18848.0,1.80524865]
[1673581302971,0.01556327,18849.0,18848.0,1.80428287]
[1673581303221,0.01556327,18849.0,18848.0,0.88052652]
[1673581303477,0.01556327,18849.0,18848.0,0.72216831]
[1673581303960,0.01556327,18849.0,18848.0,1.21046152]
[1673581304467,0.67512643,18849.0,18848.0,0.342935]
[1673581304952,0.67512643,18849.0,18848.0,0.50129321]
[1673581305193,0.67512643,18849.0,18848.0,0.329935]
[1673581305449,0.72212643,18849.0,18848.0,0.49129321]
[1673581305692,0.06256327,18849.0,18848.0,0.48464512]
[1673581305965,0.06256327,18849.0,18848.0,1.14340677]
[1673581306210,0.06256327,18849.0,18848.0,1.86377673]
[1673581306469,0.06256327,18849.0,18848.0,2.18043997]
[1673581306707,0.06256327,18849.0,18848.0,2.18140575]
[1673581306953,0.06256327,18849.0,18848.0,2.33935429]
[1673581307192,0.06256327,18849.0,18848.0,1.94388571]
[1673581307443,0.06256327,18849.0,18848.0,2.33935429]
[1673581307674,0.06256327,18849.0,18848.0,1.94388571]
[1673581307926,0.06256327,18849.0,18848.0,2.18153471]
[1673581310155,0.06256327,18849.0,18848.0,1.94388571]
[1673581310434,0.06256327,18849.0,18848.0,2.18155531]
[1673581310692,0.06256327,18849.0,18848.0,2.18158598]
[1673581311162,0.06256327,18849.0,18848.0,1.94388571]
[1673581311406,0.06256327,18849.0,18848.0,2.33935429]
[1673581311647,0.06256327,18849.0,18848.0,1.94388571]
[1673581311903,0.06256327,18849.0,18848.0,2.33935429]
[1673581312435,0.06386443,18849.0,18848.0,2.18162802]
[1673581313412,0.06386443,18849.0,18848.0,1.88162802]
[1673581313677,0.06386443,18849.0,18848.0,1.88066224]
[1673581313898,0.06386443,18849.0,18848.0,1.563999]
[1673581315091,0.06386443,18849.0,18848.0,1.88066224]
[1673581315805,0.06386443,18849.0,18848.0,2.18066224]
[1673581316068,0.06386443,18849.0,18848.0,1.88066224]
[1673581316613,0.06386443,18849.0,18848.0,1.563999]
[1673581316874,0.06386443,18849.0,18848.0,1.72251709]
[1673581317124,0.06386443,18849.0,18848.0,1.04721474]
[1673581318598,0.06386443,18849.0,18848.0,1.14721474]
[1673581318841,0.06386443,18849.0,18848.0,1.04721474]
[1673581321271,0.06386443,18849.0,18848.0,1.14721474]
[1673581321528,0.06386443,18849.0,18848.0,1.38495705]
[1673581321787,0.06305143,18849.0,18848.0,1.71649453]
[1673581322006,0.06305143,18849.0,18848.0,1.61649453]
[1673581322256,0.06305143,18849.0,18848.0,1.61647369]
[1673581322511,0.06305143,18849.0,18848.0,1.04721474]
[1673581322746,0.06305143,18849.0,18848.0,1.28495705]
[1673581322997,0.06305143,18849.0,18848.0,1.61648247]
[1673581323712,0.06305143,18849.0,18848.0,1.04721474]
[1673581324193,0.06305143,18849.0,18848.0,1.28495705]
[1673581324436,0.06305143,18849.0,18848.0,1.61672454]
[1673581324957,0.06305143,18849.0,18848.0,1.61769032]
[1673581325224,0.06305143,18849.0,18848.0,1.28592283]
[1673581325483,0.06305143,18849.0,18848.0,1.28495705]
[1673581326461,0.06305143,18849.0,18848.0,1.04721474]
[1673581326958,0.06305143,18849.0,18848.0,0.71727974]
[1673581327210,0.06305143,18849.0,18848.0,0.55876165]
[1673581327942,0.06305143,18849.0,18848.0,0.71727974]
[1673581328202,0.06305143,18849.0,18848.0,0.55876165]
[1673581329186,0.06305143,18849.0,18848.0,0.88966243]
[1673581329429,0.06305143,18849.0,18848.0,0.88869665]
[1673581329918,0.06305143,18849.0,18848.0,1.04721474]
[1673581332691,0.06305336,18849.0,18848.0,2.01596928]
[1673581333136,0.06305336,18849.0,18848.0,2.17411443]
[1673581333378,0.06305336,18849.0,18848.0,2.01592045]
[1673581333858,0.06305336,18849.0,18848.0,1.91592045]
[1673581334096,0.06305336,18849.0,18848.0,1.61592045]
[1673581334843,0.06305336,18849.0,18848.0,1.75745119]
[1673581335339,0.06305336,18849.0,18848.0,1.91595022]
[1673581335587,0.06305336,18849.0,18848.0,1.75745119]
[1673581335839,0.06305336,18849.0,18848.0,1.77411443]
[1673581336351,0.06305336,18849.0,18848.0,2.07411443]
[1673581337121,0.06305336,18849.0,18848.0,1.77411443]
[1673581337576,0.06305336,18849.0,18848.0,0.71730795]
[1673581338043,0.06305336,18849.0,18848.0,0.95505026]
[1673581338284,0.06305336,18849.0,18848.0,1.28559323]
[1673581338780,0.06305336,18849.0,18848.0,0.71730795]
[1673581340021,0.06305336,18849.0,18848.0,0.55876165]
[1673581340305,0.06305336,18849.0,18848.0,0.1585463]
[1673581340530,0.06305336,18849.0,18847.0,0.23774231]
[1673581340531,0.72373464,18849.0,18847.0,0.39628861]
[1673581340764,0.1407,18848.0,18847.0,0.7274572]
[1673581341008,0.1407,18848.0,18847.0,1.25948928]
[1673581341750,0.1407,18848.0,18847.0,0.69057838]
[1673581341986,0.1407,18848.0,18847.0,0.70257838]
[1673581342716,0.1407,18848.0,18847.0,0.69057838]
[1673581342971,0.1897,18848.0,18847.0,0.69357838]
[1673581343959,0.1897,18848.0,18847.0,0.1615463]
[1673581347130,0.1897,18848.0,18847.0,0.003]
[1673581347388,0.1897,18848.0,18847.0,0.1615463]
[1673581348444,0.1897,18848.0,18847.0,0.003]
[1673581348687,0.1897,18848.0,18847.0,0.1615463]
[1673581348944,0.1897,18848.0,18847.0,0.003]
[1673581349217,0.1897,18848.0,18847.0,0.1615463]
[1673581349479,0.1897,18848.0,18847.0,0.003]
[1673581352967,0.19100139,18848.0,18847.0,0.003]
[1673581353451,0.52093639,18848.0,18847.0,0.003]
[1673581353937,0.19100139,18848.0,18847.0,0.003]
[1673581355623,0.05030139,18848.0,18847.0,0.003]
[1673581356135,0.05030139,18848.0,18847.0,0.35825453]
[1673581360690,0.08218013,18848.0,18847.0,0.35825453]
[1673581362210,0.08218013,18848.0,18847.0,0.003]
[1673581366387,0.18218013,18848.0,18847.0,0.003]
[1673581367389,0.9510569,18848.0,18847.0,0.00288722]
[1673581367634,1.45077269,18848.0,18847.0,0.00288722]
[1673581368125,1.45077269,18848.0,18845.0,0.32130851]
[1673581368344,0.569539,18847.0,18845.0,0.32130851]
[1673581368591,0.329935,18846.0,18845.0,0.31465614]
[1673581368844,0.74677349,18847.0,18845.0,0.31465614]
[1673581369573,0.74677349,18847.0,18845.0,0.32265614]
[1673581369574,0.329935,18846.0,18845.0,0.32265614]
[1673581369827,0.84777349,18847.0,18845.0,0.32265614]
[1673581370064,0.74777349,18847.0,18845.0,0.32265614]
[1673581371992,0.74777349,18847.0,18846.0,0.63651391]
[1673581372754,0.03318013,18848.0,18846.0,0.63651391]
[1673581373006,0.101,18847.0,18846.0,0.64451391]
[1673581373261,0.10230346,18847.0,18846.0,0.64451391]
[1673581377284,0.10230346,18847.0,18846.0,0.008]
[1673581378031,0.43223846,18847.0,18846.0,0.008]
[1673581378497,0.10230346,18847.0,18846.0,0.008]
[1673581383649,0.10230346,18847.0,18846.0,0.4842199]
[1673581383902,0.10230346,18847.0,18846.0,0.6427662]
[1673581384134,0.10230346,18847.0,18846.0,1.0727012]
[1673581384872,0.10230346,18847.0,18846.0,0.6427662]
[1673581385900,0.10230346,18847.0,18846.0,0.88050851]
[1673581387374,0.10230346,18847.0,18846.0,0.6427662]
[1673581387867,0.10230346,18847.0,18846.0,1.21031473]
[1673581388119,0.10230346,18847.0,18846.0,1.54024973]
[1673581389132,0.10230346,18847.0,18846.0,1.06402983]
[1673581389370,0.10230346,18847.0,18846.0,2.6588235]
[1673581389625,0.10230346,18847.0,18846.0,1.95981608]
[1673581389864,0.10230346,18847.0,18846.0,2.65528466]
[1673581390850,0.10230346,18847.0,18846.0,2.35528466]
[1673581391353,0.10230346,18847.0,18846.0,2.65528466]
[1673581392620,0.10230346,18847.0,18846.0,2.0335485]
[1673581392857,0.10230346,18847.0,18846.0,2.35411368]
[1673581393102,0.10230346,18847.0,18846.0,1.81371637]
[1673581393346,0.10230247,18847.0,18846.0,1.48391015]
[1673581393628,0.10230247,18847.0,18846.0,1.67270569]
[1673581395113,0.10230247,18847.0,18846.0,1.6727128]
[1673581395385,0.10230247,18847.0,18846.0,1.67271261]
[1673581395644,0.10230247,18847.0,18846.0,1.6727079]
[1673581396586,0.10230247,18847.0,18846.0,1.51396609]
[1673581397072,0.10230247,18847.0,18846.0,1.83062933]
[1673581397822,0.10230247,18847.0,18846.0,2.13062933]
[1673581398306,0.10230247,18847.0,18846.0,1.83062933]
[1673581398860,0.10230247,18847.0,18846.0,2.13062933]
[1673581399561,0.10230247,18847.0,18846.0,1.51854645]
[1673581399819,0.10230247,18847.0,18846.0,2.24464209]
[1673581400077,0.10230247,18847.0,18846.0,1.90383477]
[1673581400576,0.10230247,18847.0,18846.0,2.51842313]
[1673581400818,0.10230247,18847.0,18846.0,1.90383477]
[1673581401549,0.02502276,18847.0,18846.0,1.50836619]
[1673581402296,0.02502276,18847.0,18846.0,1.84824459]
[1673581403617,0.02502276,18847.0,18846.0,1.50836619]
[1673581404843,0.02502276,18847.0,18846.0,1.84824459]
[1673581405086,0.02502276,18847.0,18846.0,1.50836619]
[1673581405829,0.02502276,18847.0,18846.0,1.90464267]
[1673581406067,0.02502276,18847.0,18846.0,1.50836619]
[1673581406567,0.02502276,18847.0,18846.0,1.90464428]
[1673581407076,0.02502276,18847.0,18846.0,1.90561015]
[1673581407593,0.02502276,18847.0,18846.0,2.17091015]
[1673581408316,0.02502276,18847.0,18846.0,1.90561015]
[1673581408562,0.02502276,18847.0,18846.0,2.17091015]
[1673581409313,0.02502276,18847.0,18846.0,1.90561015]
[1673581409554,0.02502276,18847.0,18846.0,2.17092015]
[1673581411034,0.02502276,18847.0,18846.0,2.85895343]
[1673581411517,0.02502276,18847.0,18846.0,3.17592972]
[1673581412473,0.02502276,18847.0,18846.0,2.48789644]
[1673581412722,0.02502276,18847.0,18846.0,2.70518344]
[1673581412971,0.02502276,18847.0,18846.0,3.02216513]
[1673581413712,0.02501946,18847.0,18846.0,3.02216513]
[1673581413971,0.02501946,18847.0,18846.0,2.75702477]
[1673581414443,0.02501946,18847.0,18846.0,3.03372056]
[1673581416418,0.02501946,18847.0,18846.0,2.76841056]
[1673581417634,0.02501946,18847.0,18846.0,2.76937643]
[1673581419135,0.02501946,18847.0,18846.0,2.76945561]
[1673581419617,0.02501946,18847.0,18846.0,2.45239474]
[1673581420167,0.02501946,18847.0,18846.0,2.76952238]
[1673581420412,0.02501946,18847.0,18846.0,2.76855651]
[1673581421398,0.02501946,18847.0,18846.0,2.76952238]
[1673581422658,0.02501946,18847.0,18846.0,2.76855651]
[1673581422912,0.02501946,18847.0,18846.0,1.59453947]
[1673581423162,0.02501946,18847.0,18846.0,1.26460447]
[1673581424469,0.02501946,18847.0,18846.0,0.93520893]
[1673581424723,0.02493148,18847.0,18846.0,1.25185985]
[1673581424973,0.02493148,18847.0,18846.0,0.53872445]
[1673581425476,0.02493148,18847.0,18846.0,0.00446116]
[1673581425739,0.60266673,18847.0,18846.0,0.00446116]
[1673581430935,0.60266673,18847.0,18845.0,0.5018457]
[1673581431179,0.60266673,18847.0,18845.0,0.89833018]
[1673581432185,0.60266673,18847.0,18846.0,0.54851575]
[1673581432186,0.00129917,18847.0,18846.0,0.54851575]
[1673581432417,0.04029917,18847.0,18846.0,0.54851575]
[1673581432949,0.04029917,18847.0,18846.0,0.70711309]
[1673581433204,0.04029917,18847.0,18846.0,0.80711309]
[1673581433459,0.04029917,18847.0,18846.0,0.97845075]
[1673581433709,0.00129917,18847.0,18846.0,0.80711309]
[1673581433965,0.03930033,18847.0,18846.0,0.71711309]
[1673581434458,0.03930033,18847.0,18846.0,0.81711309]
[1673581436491,0.03930033,18847.0,18846.0,1.14704809]
[1673581436999,0.03930033,18847.0,18846.0,0.81711309]
[1673581437242,0.03930033,18847.0,18846.0,3.61096596]
[1673581437490,0.03930033,18847.0,18846.0,3.34566596]
[1673581438843,0.03930033,18847.0,18846.0,2.34231033]
[1673581439044,0.01335703,18847.0,18846.0,2.34231033]
[1673581439271,0.01335703,18847.0,18846.0,2.8712682]
[1673581439773,0.00130033,18847.0,18846.0,2.33231033]
[1673581440049,0.00130033,18847.0,18846.0,2.35231033]
[1673581440269,0.00130033,18847.0,18846.0,2.89987831]
[1673581440985,0.00130033,18847.0,18846.0,2.3532762]
[1673581441254,0.00130033,18847.0,18846.0,2.89778056]
[1673581441983,0.00130033,18847.0,18846.0,2.3532762]
[1673581442217,0.00130033,18847.0,18846.0,3.03369192]
[1673581442716,0.00130033,18847.0,18846.0,2.3532762]
[1673581442953,0.00130033,18847.0,18846.0,2.87992389]
[1673581443197,0.00130033,18847.0,18846.0,2.3532762]
[1673581444104,0.00130033,18847.0,18846.0,2.9556478]
[1673581444354,0.00130033,18847.0,18846.0,2.3532762]
[1673581445224,0.00130033,18847.0,18846.0,2.84705209]
[1673581445406,0.00130033,18847.0,18846.0,2.84608622]
[1673581445647,0.00130033,18847.0,18846.0,3.16334789]
[1673581449037,0.00130033,18847.0,18846.0,3.16431376]
[1673581449823,0.00130033,18847.0,18846.0,2.84705209]
[1673581450072,0.00130033,18847.0,18846.0,2.90314263]
[1673581450576,0.00130033,18847.0,18846.0,2.3532762]
[1673581452265,0.00130033,18847.0,18846.0,2.89555125]
[1673581452503,0.00130033,18847.0,18846.0,2.3532762]
[1673581454406,0.00130218,18847.0,18846.0,2.85186318]
[1673581454663,0.00130218,18847.0,18846.0,2.3532762]
[1673581456411,0.00130218,18847.0,18846.0,1.95699811]
[1673581457523,0.00130218,18847.0,18846.0,2.5249639]
[1673581457769,0.00130218,18847.0,18846.0,2.92047599]
[1673581459008,0.00048279,18847.0,18846.0,2.92047599]
[1673581459969,0.00048279,18847.0,18846.0,2.3525102]
[1673581460201,0.00048279,18847.0,18846.0,2.35347607]
[1673581460677,0.00048279,18847.0,18846.0,2.87841159]
[1673581463854,0.00048279,18847.0,18846.0,2.3525102]
[1673581464064,0.00048279,18847.0,18846.0,1.95603224]
[1673581464547,0.00048279,18847.0,18846.0,2.62046773]
[1673581464788,0.00048279,18847.0,18846.0,3.01694293]
[1673581465755,0.00048279,18847.0,18846.0,3.0179088]
[1673581467511,0.00048279,18847.0,18846.0,1.95699811]
[1673581468710,0.00048279,18847.0,18846.0,2.60365094]
[1673581469442,0.00048279,18847.0,18846.0,1.95699811]
[1673581469680,0.00048279,18847.0,18846.0,2.61099263]
[1673581469946,0.00048279,18847.0,18846.0,1.95699811]
[1673581470194,0.00048279,18847.0,18846.0,2.52904241]
[1673581470700,0.00048279,18847.0,18846.0,1.95688083]
[1673581470934,0.00048279,18847.0,18846.0,2.62798306]
[1673581471194,0.00048279,18847.0,18846.0,1.95688083]
[1673581471682,0.00048279,18847.0,18846.0,2.43144313]
[1673581473660,0.00048279,18847.0,18846.0,3.01932103]
[1673581474144,0.00048279,18847.0,18846.0,2.43144313]
[1673581474383,0.03187874,18848.0,18846.0,2.43144313]
[1673581474629,0.00129682,18847.0,18846.0,1.36554589]
[1673581474898,0.00129682,18847.0,18846.0,2.52505588]
[1673581475145,0.00129682,18847.0,18846.0,2.50505588]
[1673581475676,0.00129682,18847.0,18846.0,3.14851225]
[1673581476160,0.00129682,18847.0,18846.0,2.50505588]
[1673581476414,0.00129682,18847.0,18846.0,2.52505588]
[1673581476657,0.00129682,18847.0,18846.0,2.50505588]
[1673581476957,0.00129682,18847.0,18846.0,3.4166475]
[1673581477186,0.00129682,18847.0,18846.0,2.79035588]
[1673581478158,0.00129682,18847.0,18846.0,3.47139155]
[1673581478656,0.00129682,18847.0,18846.0,3.20609155]
[1673581478895,0.00129682,18847.0,18846.0,2.73152925]
[1673581479414,0.00129682,18847.0,18846.0,2.43564834]
[1673581480128,0.64028628,18847.0,18846.0,2.43564834]
[1673581480377,0.64028628,18847.0,18846.0,2.27682087]
[1673581480628,0.64028628,18847.0,18846.0,2.73564834]
[1673581480880,0.64028628,18847.0,18846.0,2.76558334]
[1673581481125,0.64028628,18847.0,18846.0,2.27667968]
[1673581481378,0.64028628,18847.0,18846.0,2.03851678]
[1673581481616,0.64028628,18847.0,18846.0,2.43564834]
[1673581482108,0.64028628,18847.0,18846.0,2.27666932]
[1673581483621,0.00129682,18847.0,18846.0,2.27666932]
[1673581484354,0.00129682,18847.0,18846.0,1.55099594]
[1673581485088,0.00129682,18847.0,18846.0,1.39207966]
[1673581487046,0.00129682,18847.0,18846.0,1.09894305]
[1673581487323,0.00129682,18847.0,18846.0,0.86079051]
[1673581487837,0.03439343,18847.0,18846.0,0.86079051]
[1673581489103,0.03439343,18847.0,18846.0,0.17878897]
[1673581489350,0.57287876,18847.0,18846.0,0.02]
[1673581489849,0.57287876,18847.0,18846.0,0.17878897]
[1673581490097,0.57287876,18847.0,18846.0,0.02]
[1673581491595,0.57281148,18847.0,18846.0,0.02]
[1673581494804,1.0432151,18847.0,18846.0,0.02]
[1673581495846,1.0432151,18847.0,18845.0,0.48728576]
[1673581496082,0.8132801,18847.0,18845.0,0.48728576]
[1673581496324,0.8252801,18847.0,18845.0,0.48728576]
[1673581496580,0.8132801,18847.0,18845.0,0.48728576]
[1673581496834,0.329935,18846.0,18845.0,0.50728576]
[1673581497079,0.8132801,18847.0,18845.0,0.48728576]
[1673581497536,0.8252801,18847.0,18845.0,0.48728576]
[1673581498495,0.8132801,18847.0,18845.0,0.48728576]
[1673581498746,0.012,18846.0,18845.0,0.48728576]
[1673581498999,0.8132801,18847.0,18845.0,0.48728576]
[1673581499254,0.8252801,18847.0,18845.0,0.48728576]
[1673581499501,0.8252801,18847.0,18844.0,0.1629987]
[1673581499775,1.02077192,18846.0,18844.0,0.39088216]
[1673581500014,0.69083692,18846.0,18844.0,0.00420973]
[1673581500288,0.83063692,18846.0,18844.0,0.00420973]
[1673581501256,0.68120486,18845.0,18844.0,0.00420973]
[1673581501507,0.68120486,18845.0,18844.0,0.02420973]
[1673581501768,0.68120486,18845.0,18844.0,0.00420973]
[1673581502010,0.68120486,18845.0,18844.0,0.02420973]
[1673581502297,0.68120486,18845.0,18844.0,0.00420973]
[1673581502556,0.82190486,18845.0,18844.0,0.02420973]
[1673581502807,1.15183986,18845.0,18844.0,0.02420973]
[1673581503053,1.16383986,18845.0,18844.0,0.02420973]
[1673581504083,1.15183986,18845.0,18844.0,0.00420973]
[1673581504331,1.15183986,18845.0,18844.0,0.01420973]
[1673581504332,1.16283986,18845.0,18844.0,0.01420973]
[1673581505568,0.011,18845.0,18844.0,0.60295111]
[1673581505826,0.011,18845.0,18844.0,1.33288611]
[1673581506075,0.03439477,18847.0,18846.0,0.329935]
[1673581506323,0.03439477,18847.0,18846.0,1.47731213]
[1673581506562,0.03439477,18847.0,18846.0,2.5445478]
[1673581506821,0.03439477,18847.0,18846.0,3.12697547]
[1673581507080,0.03439477,18847.0,18846.0,3.54707547]
[1673581507357,0.03439477,18847.0,18846.0,2.92962683]
[1673581507609,0.03439477,18847.0,18846.0,2.6128786]
[1673581507858,0.03439477,18847.0,18846.0,3.31278078]
[1673581508113,0.03439477,18847.0,18846.0,3.45178078]
[1673581508356,0.03439477,18847.0,18846.0,3.31278078]
[1673581508563,0.03439477,18847.0,18846.0,3.45278078]
[1673581508855,0.03439477,18847.0,18846.0,4.34709447]
[1673581509107,0.24469971,18847.0,18846.0,1.58601887]
[1673581509360,0.03439477,18847.0,18846.0,1.32763199]
[1673581510346,0.03439477,18847.0,18846.0,1.48591887]
[1673581510599,0.03439477,18847.0,18846.0,1.32753199]
[1673581510840,0.03439477,18847.0,18846.0,1.48591887]
[1673581512089,0.03439477,18847.0,18846.0,1.32753199]
[1673581513068,0.03439477,18847.0,18846.0,1.48591887]
[1673581513582,0.03439477,18847.0,18846.0,1.78591887]
[1673581514067,0.03439477,18847.0,18846.0,2.02352361]
[1673581514313,0.03439477,18847.0,18846.0,2.31121278]
[1673581515068,0.03439434,18847.0,18846.0,2.24229597]
[1673581515316,0.03439434,18847.0,18846.0,2.50771108]
[1673581515825,0.03439434,18847.0,18846.0,2.19084927]
[1673581516313,0.03439434,18847.0,18846.0,2.5077096]
[1673581516799,0.03439434,18847.0,18846.0,2.19084927]
[1673581520283,0.03439434,18847.0,18846.0,2.19092466]
[1673581520540,0.03439434,18847.0,18846.0,1.79491943]
[1673581521040,0.03439434,18847.0,18846.0,2.19087498]
[1673581522561,0.03439434,18847.0,18846.0,2.13954972]
[1673581523073,0.03439434,18847.0,18846.0,2.45631085]
[1673581524303,0.03439434,18847.0,18846.0,2.13954972]
[1673581524516,0.03439434,18847.0,18846.0,2.13948611]
[1673581524795,0.03439434,18847.0,18846.0,2.13848611]
[1673581525030,0.03439434,18847.0,18846.0,2.31620072]
[1673581525518,0.03439434,18847.0,18846.0,2.45520072]
[1673581526033,0.01359053,18847.0,18846.0,2.45520072]
[1673581526525,0.01359053,18847.0,18846.0,2.45514908]
[1673581526770,0.01359053,18847.0,18846.0,2.13848611]
[1673581527022,0.01359053,18847.0,18846.0,2.45513166]
[1673581528271,0.01359053,18847.0,18846.0,2.45514166]
[1673581528520,0.01359053,18847.0,18846.0,2.05918611]